bitfinex/quotes_BTCUSD_20241229
["timestamp","ask_amount","ask_price","bid_price","bid_amount"]
[1735460104095,1.0437818,95369.0,95368.0,0.20337102]
[1735460107802,1.06023456,95369.0,95368.0,0.20337102]
[1735460109374,1.14323456,95369.0,95368.0,0.0070854]
[1735460109576,1.14323456,95369.0,95368.0,0.10337102]
[1735460109775,1.14323456,95369.0,95368.0,0.0070854]
[1735460110117,1.1712739,95369.0,95368.0,0.0070854]
[1735460110311,1.1712739,95369.0,95368.0,0.0030854]
[1735460110513,1.1702739,95369.0,95368.0,8.54e-05]
[1735460111083,1.1722739,95369.0,95368.0,8.54e-05]
[1735460111475,0.1296629,95369.0,95368.0,0.0030854]
[1735460111688,0.1276629,95369.0,95368.0,8.54e-05]
[1735460111933,1.1702739,95369.0,95368.0,0.0020854]
[1735460112110,1.1702739,95369.0,95368.0,0.0040854]
[1735460113287,1.15382114,95369.0,95368.0,0.0040854]
[1735460113489,1.15382114,95369.0,95368.0,0.0020854]
[1735460113688,1.15382114,95369.0,95368.0,0.0040854]
[1735460113909,1.15382114,95369.0,95368.0,0.0020854]
[1735460114475,1.15382114,95369.0,95368.0,0.0030854]
[1735460115065,1.15382114,95369.0,95368.0,0.0050854]
[1735460115620,1.1257818,95369.0,95368.0,0.0050854]
[1735460116637,1.1422371,95369.0,95368.0,0.0050854]
[1735460118764,1.1891371,95369.0,95368.0,0.0050854]
[1735460120617,1.1891371,95369.0,95368.0,8.54e-05]
[1735460120930,1.1911371,95369.0,95368.0,8.54e-05]
[1735460121754,1.1911371,95369.0,95368.0,0.0010854]
[1735460121956,1.1891371,95369.0,95368.0,0.0010854]
[1735460123350,1.1891371,95369.0,95368.0,8.54e-05]
[1735460123550,1.1891371,95369.0,95368.0,0.0010854]
[1735460124631,1.21699678,95369.0,95368.0,0.0010854]
[1735460124837,1.1891371,95369.0,95368.0,0.0010854]
[1735460126267,1.1891371,95369.0,95368.0,8.54e-05]
[1735460126703,1.1891371,95369.0,95368.0,0.0010854]
[1735460127477,1.21717644,95369.0,95368.0,0.0010854]
[1735460128100,1.21717644,95369.0,95368.0,8.54e-05]
[1735460129286,1.22692064,95369.0,95368.0,8.54e-05]
[1735460129508,1.22792064,95369.0,95368.0,8.54e-05]
[1735460129912,0.18430964,95369.0,95368.0,8.54e-05]
[1735460130255,0.18730964,95369.0,95368.0,8.54e-05]
[1735460130477,0.18630964,95369.0,95368.0,8.54e-05]
[1735460130680,1.22892064,95369.0,95368.0,8.54e-05]
[1735460131005,1.22992064,95369.0,95368.0,8.54e-05]
[1735460131318,1.24737769,95369.0,95368.0,8.54e-05]
[1735460133137,1.53066744,95369.0,95368.0,8.54e-05]
[1735460135203,1.24737769,95369.0,95368.0,8.54e-05]
[1735460137466,1.2745405,95369.0,95368.0,8.54e-05]
[1735460137750,1.27825488,95369.0,95368.0,8.54e-05]
[1735460138607,1.27425488,95369.0,95368.0,8.54e-05]
[1735460139103,1.28125488,95369.0,95368.0,8.54e-05]
[1735460139448,1.28025488,95369.0,95368.0,8.54e-05]
[1735460139890,1.28225488,95369.0,95368.0,8.54e-05]
[1735460140100,1.60143609,95369.0,95368.0,8.54e-05]
[1735460140627,1.57427328,95369.0,95368.0,8.54e-05]
[1735460141115,1.56827328,95369.0,95368.0,8.54e-05]
[1735460141637,1.25709207,95369.0,95368.0,8.54e-05]
[1735460141824,1.24709207,95369.0,95368.0,8.54e-05]
[1735460142031,1.25809207,95369.0,95368.0,8.54e-05]
[1735460142365,1.25509207,95369.0,95368.0,8.54e-05]
[1735460142765,1.25809207,95369.0,95368.0,8.54e-05]
[1735460142985,0.00371438,95363.0,95350.0,0.04931362]
[1735460143211,0.0757,95361.0,95350.0,0.04946665]
[1735460143389,0.0757,95359.0,95350.0,0.04946665]
[1735460143588,1.042611,95358.0,95350.0,0.04946665]
[1735460143792,1.05357498,95358.0,95350.0,0.04946665]
[1735460143977,0.0757,95356.0,95350.0,0.04946665]
[1735460144174,1.042611,95355.0,95350.0,0.04946665]
[1735460145171,1.044611,95355.0,95350.0,0.04946665]
[1735460145527,1.042611,95354.0,95350.0,0.04946665]
[1735460147074,1.042611,95355.0,95350.0,0.04946665]
[1735460147757,0.001,95354.0,95350.0,0.04946665]
[1735460147964,1.042611,95353.0,95350.0,0.04946665]
[1735460148158,0.2358486,95351.0,95350.0,0.04955205]
[1735460148358,1.2784596,95351.0,95350.0,0.04955205]
[1735460150479,1.042611,95351.0,95350.0,0.04955205]
[1735460150701,1.042611,95355.0,95350.0,0.04955205]
[1735460151274,1.042611,95355.0,95350.0,0.05055205]
[1735460151700,1.042611,95355.0,95350.0,0.04955205]
[1735460153199,0.002,95355.0,95350.0,0.04955205]
[1735460153395,1.042611,95354.0,95350.0,0.04955205]
[1735460154229,1.043611,95355.0,95350.0,0.05055205]
[1735460154589,1.042611,95354.0,95350.0,0.05055205]
[1735460154792,1.042611,95355.0,95350.0,0.04955205]
[1735460154946,0.773359,95355.0,95350.0,0.05055205]
[1735460155150,0.773359,95354.0,95350.0,0.05055205]
[1735460155356,0.773359,95353.0,95350.0,0.05055205]
[1735460155670,0.773359,95352.0,95350.0,0.04955205]
[1735460155874,0.773359,95351.0,95350.0,0.04955205]
[1735460156827,0.773359,95351.0,95350.0,0.05055205]
[1735460157512,0.773359,95351.0,95350.0,0.04955205]
[1735460157722,0.773359,95351.0,95350.0,0.05055205]
[1735460160922,0.18882975,95352.0,95350.0,0.05055205]
[1735460161308,0.510862,95351.0,95350.0,0.05055205]
[1735460161714,0.510862,95351.0,95350.0,0.04955205]
[1735460163020,0.69969175,95351.0,95350.0,0.04955205]
[1735460164370,0.510862,95351.0,95350.0,0.05055205]
[1735460164660,0.510862,95353.0,95350.0,0.05055205]
[1735460165089,0.10713934,95352.0,95350.0,0.05055205]
[1735460165246,0.510862,95351.0,95350.0,0.05055205]
[1735460166258,0.52732128,95351.0,95350.0,0.04955205]
[1735460166460,0.52732128,95351.0,95350.0,0.05055205]
[1735460166982,0.52732128,95351.0,95350.0,0.04955205]
[1735460167290,0.52732128,95351.0,95350.0,0.05055205]
[1735460167433,0.58258044,95351.0,95350.0,0.05055205]
[1735460168057,0.55536062,95351.0,95350.0,0.05055205]
[1735460168286,0.55536062,95351.0,95350.0,0.04955205]
[1735460169211,0.55936062,95351.0,95350.0,0.04955205]
[1735460169514,0.55636062,95351.0,95350.0,0.04955205]
[1735460169940,0.55836062,95351.0,95350.0,0.04955205]
[1735460170132,0.55536062,95351.0,95350.0,0.04955205]
[1735460170336,0.55636062,95351.0,95350.0,0.04955205]
[1735460170632,0.56036062,95351.0,95350.0,0.04955205]
[1735460170839,0.53132128,95351.0,95350.0,0.04955205]
[1735460171253,0.53232128,95351.0,95350.0,0.04955205]
[1735460172141,0.52832128,95351.0,95350.0,0.04955205]
[1735460172343,0.52732128,95351.0,95350.0,0.04955205]
[1735460172566,0.53232128,95351.0,95350.0,0.04955205]
[1735460172944,0.53732128,95351.0,95350.0,0.04955205]
[1735460173356,0.52832128,95351.0,95350.0,0.04955205]
[1735460173535,0.53532128,95351.0,95350.0,0.04955205]
[1735460173734,0.53432128,95351.0,95350.0,0.04955205]
[1735460173957,0.52932128,95351.0,95350.0,0.04955205]
[1735460174233,0.53632128,95351.0,95350.0,0.04955205]
[1735460175524,0.52732128,95351.0,95350.0,0.04955205]
[1735460175736,0.52932128,95351.0,95350.0,0.04955205]
[1735460175864,0.53532128,95351.0,95350.0,0.04955205]
[1735460179810,0.02445928,95351.0,95350.0,0.04955205]
[1735460179990,0.53532128,95351.0,95350.0,0.04955205]
[1735460182632,0.85374761,95351.0,95350.0,0.04955205]
[1735460182840,0.85174761,95351.0,95350.0,0.04955205]
[1735460183047,0.84574761,95351.0,95350.0,0.04955205]
[1735460183262,0.82928833,95351.0,95350.0,0.04955205]
[1735460183479,0.83228833,95351.0,95350.0,0.04955205]
[1735460184550,0.83245913,95351.0,95350.0,0.04955205]
[1735460184790,0.5110328,95351.0,95350.0,0.04955205]
[1735460185031,0.5140328,95351.0,95350.0,0.04955205]
[1735460185600,0.5210328,95351.0,95350.0,0.04955205]
[1735460185842,0.5230328,95351.0,95350.0,0.04955205]
[1735460186343,0.53749255,95351.0,95350.0,0.04955205]
[1735460186567,0.53949255,95351.0,95350.0,0.04955205]
[1735460189309,0.55045653,95351.0,95350.0,0.04955205]
[1735460191473,0.55045653,95351.0,95350.0,0.03473886]
[1735460194866,0.55045653,95351.0,95350.0,0.02447582]
[1735460198019,0.55045653,95351.0,95350.0,0.01795451]
[1735460200664,0.55045653,95351.0,95350.0,0.01131451]
[1735460206230,0.87003949,95351.0,95350.0,0.01131451]
[1735460209217,0.55045653,95351.0,95350.0,0.01131451]
[1735460221557,0.57879687,95351.0,95350.0,0.01131451]
[1735460224293,0.55045653,95351.0,95350.0,0.01131451]
[1735460234205,0.57879687,95351.0,95350.0,0.01131451]
[1735460234408,0.56233712,95351.0,95350.0,0.01131451]
[1735460235323,0.55233712,95351.0,95350.0,0.01131451]
[1735460235502,0.65543914,95351.0,95350.0,0.01131451]
[1735460235708,0.66343914,95351.0,95350.0,0.01131451]
[1735460235865,0.65843914,95351.0,95350.0,0.01131451]
[1735460236346,0.65543914,95351.0,95350.0,0.01131451]
[1735460236951,0.65943914,95351.0,95350.0,0.01131451]
[1735460237154,0.6310988,95351.0,95350.0,0.01131451]
[1735460237299,0.6270988,95351.0,95350.0,0.01131451]
[1735460237507,0.64355913,95351.0,95350.0,0.01131451]
[1735460237707,0.65155913,95351.0,95350.0,0.01131451]
[1735460237960,0.64355913,95351.0,95350.0,0.01131451]
[1735460238306,0.65155913,95351.0,95350.0,0.01131451]
[1735460238531,0.33395033,95351.0,95350.0,0.01131451]
[1735460238872,0.33695033,95351.0,95350.0,0.09270596]
[1735460239027,0.33395033,95351.0,95350.0,0.09270596]
[1735460239456,0.33695033,95351.0,95350.0,0.08671451]
[1735460239758,0.32895033,95351.0,95350.0,0.08671451]
[1735460239997,0.32595033,95351.0,95350.0,0.08671451]
[1735460241416,0.32612113,95351.0,95350.0,0.08671451]
[1735460242122,0.01663113,95351.0,95350.0,0.08671451]
[1735460242329,0.32612113,95351.0,95350.0,0.08671451]
[1735460242521,0.3096608,95351.0,95350.0,0.08671451]
[1735460245276,0.32611958,95351.0,95350.0,0.08671451]
[1735460252216,0.3096608,95351.0,95350.0,0.07025076]
[1735460253281,0.3096608,95351.0,95350.0,0.07033616]
[1735460255320,0.32611971,95351.0,95350.0,0.07033616]
[1735460255517,0.32611971,95351.0,95350.0,8.54e-05]
[1735460263002,0.32711971,95351.0,95350.0,8.54e-05]
[1735460263311,0.3096608,95351.0,95350.0,8.54e-05]
[1735460263689,0.3106608,95351.0,95350.0,8.54e-05]
[1735460263988,0.3096608,95351.0,95350.0,8.54e-05]
[1735460265667,0.04304441,95351.0,95350.0,8.54e-05]
[1735460266329,0.05950348,95351.0,95350.0,8.54e-05]
[1735460267070,0.01645907,95351.0,95350.0,8.54e-05]
[1735460267275,2.21532507,95351.0,95350.0,8.54e-05]
[1735460267896,2.16111207,95351.0,95350.0,8.54e-05]
[1735460268098,1.99930307,95351.0,95350.0,8.54e-05]
[1735460271969,1.99930307,95351.0,95343.0,0.09163977]
[1735460272137,2.16711,95350.0,95343.0,0.09172112]
[1735460272664,0.01645907,95351.0,95350.0,0.21653977]
[1735460272863,1.82181207,95351.0,95350.0,0.21653977]
[1735460273072,1.79296107,95351.0,95350.0,0.21653977]
[1735460273219,1.776502,95351.0,95350.0,0.21653977]
[1735460274222,1.746979,95351.0,95350.0,0.21653977]
[1735460275575,1.746979,95351.0,95350.0,0.21662517]
[1735460275754,1.338304,95351.0,95350.0,0.21662517]
[1735460276596,1.35493281,95351.0,95350.0,0.31662517]
[1735460276892,1.35693281,95351.0,95350.0,0.31662517]
[1735460277097,1.35593281,95351.0,95350.0,0.31662517]
[1735460277335,1.35493281,95351.0,95350.0,0.31662517]
[1735460277522,1.35593281,95351.0,95350.0,0.31662517]
[1735460277726,1.35493281,95351.0,95350.0,0.31662517]
[1735460277960,1.33662581,95351.0,95350.0,0.34829582]
[1735460278106,0.88660281,95351.0,95350.0,0.31662517]
[1735460278296,0.87031081,95351.0,95350.0,0.31662517]
[1735460278497,0.85340281,95351.0,95350.0,0.31662517]
[1735460278799,0.68191381,95351.0,95350.0,0.31662517]
[1735460279449,0.68291381,95351.0,95350.0,0.31762517]
[1735460279825,0.01862881,95351.0,95350.0,0.31762517]
[1735460280026,0.97089281,95351.0,95350.0,0.31762517]
[1735460283229,0.9544348,95351.0,95350.0,0.31762517]
[1735460283743,0.97089226,95351.0,95350.0,0.31762517]
[1735460293374,0.7947188,95351.0,95350.0,0.31762517]
[1735460293579,0.6190158,95351.0,95350.0,0.31762517]
[1735460293980,0.6066188,95351.0,95350.0,0.31762517]
[1735460296541,0.62307557,95351.0,95350.0,0.31762517]
[1735460297750,0.37841757,95351.0,95350.0,0.31762517]
[1735460302652,0.01862757,95351.0,95350.0,0.31762517]
[1735460302806,1.84226057,95351.0,95350.0,0.31762517]
[1735460303354,1.7761118,95351.0,95350.0,0.31762517]
[1735460305388,1.0496848,95351.0,95350.0,0.31762517]
[1735460307872,1.06614148,95351.0,95350.0,0.31762517]
[1735460308157,0.57973348,95351.0,95350.0,0.31762517]
[1735460308359,0.57873348,95351.0,95350.0,0.31662517]
[1735460308552,0.57773348,95351.0,95350.0,0.31662517]
[1735460309038,0.57873348,95351.0,95350.0,0.31762517]
[1735460309236,0.57873348,95351.0,95350.0,0.31662517]
[1735460309458,0.57973348,95351.0,95350.0,0.31762517]
[1735460310428,0.58073348,95351.0,95350.0,0.31762517]
[1735460311728,0.58073348,95351.0,95350.0,0.23802517]
[1735460313218,0.5642768,95351.0,95350.0,0.19272517]
[1735460313754,2.8482598,95351.0,95350.0,0.19272517]
[1735460313973,2.3901558,95351.0,95350.0,0.19272517]
[1735460314176,2.3351748,95351.0,95350.0,0.19272517]
[1735460314698,1.9327838,95351.0,95350.0,0.19272517]
[1735460315054,1.7399648,95351.0,95350.0,0.19272517]
[1735460315257,1.5743748,95351.0,95350.0,0.19272517]
[1735460316486,1.59083148,95351.0,95350.0,0.19272517]
[1735460318766,0.97403648,95351.0,95350.0,0.19272517]
[1735460320160,0.97403648,95351.0,95350.0,0.1010854]
[1735460320355,0.97403648,95351.0,95350.0,0.19272517]
[1735460322406,1.16349022,95351.0,95350.0,0.19272517]
[1735460323324,1.14703354,95351.0,95350.0,0.19272517]
[1735460326534,1.16349022,95351.0,95350.0,0.19272517]
[1735460329665,1.21042527,95351.0,95350.0,0.19272517]
[1735460330407,0.97403648,95351.0,95350.0,0.19272517]
[1735460331023,0.01962748,95351.0,95350.0,0.19272517]
[1735460331282,1.92611948,95351.0,95350.0,0.19272517]
[1735460331586,1.72885348,95351.0,95350.0,0.19272517]
[1735460334173,0.4531728,95351.0,95350.0,0.19272517]
[1735460334548,0.3702588,95351.0,95350.0,0.19272517]
[1735460335481,0.3702588,95351.0,95350.0,0.22470436]
[1735460335710,0.2027618,95351.0,95350.0,0.22470436]
[1735460336365,0.0031708,95351.0,95350.0,0.27340436]
[1735460336799,0.2177108,95351.0,95350.0,0.27340436]
[1735460336990,0.2176918,95351.0,95350.0,0.27340436]
[1735460337222,0.2166918,95351.0,95350.0,0.27340436]
[1735460337354,0.2146918,95351.0,95350.0,0.27240436]
[1735460337556,0.23214726,95351.0,95350.0,0.27340436]
[1735460337738,0.01762626,95351.0,95350.0,0.27340436]
[1735460338135,0.01762626,95351.0,95350.0,0.35440436]
[1735460338741,0.0021708,95351.0,95350.0,0.35840436]
[1735460338880,0.1763698,95351.0,95350.0,0.35840436]
[1735460339292,0.0021708,95351.0,95350.0,0.35840436]
[1735460340142,0.1763648,95351.0,95350.0,0.35840436]
[1735460340948,0.0021708,95351.0,95350.0,0.35840436]
[1735460341301,0.1973858,95351.0,95350.0,0.35840436]
[1735460341478,0.21384093,95351.0,95350.0,0.35840436]
[1735460342176,0.18347493,95351.0,95350.0,0.35840436]
[1735460343162,0.01862593,95351.0,95350.0,0.35840436]
[1735460343504,0.0021708,95351.0,95350.0,0.35840436]
[1735460346638,0.0186253,95351.0,95350.0,0.35840436]
[1735460349616,0.0186253,95351.0,95350.0,0.32642517]
[1735460353434,0.0021708,95351.0,95350.0,0.32642517]
[1735460354275,0.0021708,95351.0,95350.0,0.63041149]
[1735460356377,0.01862495,95351.0,95350.0,0.63041149]
[1735460358460,0.01862495,95351.0,95350.0,0.42642517]
[1735460359570,0.01862495,95351.0,95350.0,0.47908436]
[1735460360762,0.01862495,95351.0,95350.0,0.68307068]
[1735460362739,0.01862495,95351.0,95350.0,0.48307068]
[1735460362946,0.01862495,95351.0,95350.0,0.68307068]
[1735460363156,0.0021708,95351.0,95350.0,0.68307068]
[1735460366388,0.01862394,95351.0,95350.0,0.68307068]
[1735460367494,0.01662394,95351.0,95350.0,0.67807068]
[1735460367697,0.01762394,95351.0,95350.0,0.68507068]
[1735460367908,0.01862394,95351.0,95350.0,0.69307068]
[1735460368311,0.01862394,95351.0,95350.0,0.80387068]
[1735460368615,0.01862394,95351.0,95350.0,1.34327068]
[1735460369078,0.01862394,95351.0,95350.0,1.37277439]
[1735460369252,0.01862394,95351.0,95350.0,1.26197439]
[1735460369816,0.01762394,95351.0,95350.0,1.24697439]
[1735460370036,0.01662394,95351.0,95350.0,1.24697439]
[1735460370232,0.01662394,95351.0,95350.0,1.25597439]
[1735460370685,0.0001708,95354.0,95353.0,0.52353977]
[1735460370821,0.0001708,95354.0,95353.0,0.73151241]
[1735460371330,0.01662194,95354.0,95353.0,0.73051241]
[1735460371533,0.01662194,95354.0,95353.0,0.76001612]
[1735460371732,0.01662194,95354.0,95353.0,0.76901612]
[1735460372149,0.01762194,95354.0,95353.0,1.31741612]
[1735460372552,0.01762194,95354.0,95353.0,1.41164123]
[1735460373370,0.01762194,95354.0,95353.0,1.31741612]
[1735460375199,0.01762194,95354.0,95353.0,1.30758192]
[1735460376517,0.0011708,95354.0,95353.0,1.30758192]
[1735460379528,0.0011708,95354.0,95353.0,1.41838192]
[1735460379659,0.01762177,95354.0,95353.0,1.41838192]
[1735460383447,0.0011708,95354.0,95353.0,1.51249253]
[1735460385948,0.0011708,95354.0,95353.0,1.41838192]
[1735460386651,0.0176211,95354.0,95353.0,1.41838192]
[1735460387242,0.0176211,95354.0,95353.0,1.41846732]
[1735460392135,0.0176211,95354.0,95353.0,1.95462378]
[1735460392278,0.0001708,95369.0,95368.0,0.50143977]
[1735460392455,0.0001708,95369.0,95368.0,0.78267007]
[1735460393260,0.0001708,95369.0,95368.0,1.32207007]
[1735460393516,0.0011708,95369.0,95368.0,1.35873958]
[1735460394266,0.0011708,95369.0,95368.0,1.34973958]
[1735460394511,0.0001708,95369.0,95368.0,1.34173958]
[1735460394689,0.0001708,95369.0,95368.0,1.35073958]
[1735460394690,0.0011708,95369.0,95368.0,1.35073958]
[1735460396172,0.0011708,95369.0,95368.0,1.35973958]
[1735460402915,0.09291433,95432.0,95425.0,0.09063977]
[1735460403197,3.59620593,95431.0,95421.0,0.06253977]
[1735460403388,3.608399,95430.0,95421.0,0.06253977]
[1735460403577,0.02667693,95429.0,95421.0,0.06253977]
[1735460403784,3.618704,95428.0,95421.0,0.06253977]
[1735460404104,0.02667693,95427.0,95421.0,0.06253977]
[1735460404319,3.10866793,95427.0,95421.0,0.06253977]
[1735460404678,3.333542,95426.0,95420.0,0.06253977]
[1735460404885,3.333542,95426.0,95421.0,0.06253977]
[1735460405975,0.0793,95425.0,95421.0,0.06253977]
[1735460406338,0.0948,95423.0,95421.0,0.06253977]
[1735460406531,3.197996,95422.0,95421.0,0.06453977]
[1735460406737,3.277296,95422.0,95421.0,0.06253977]
[1735460406944,3.053983,95422.0,95421.0,0.06253977]
[1735460407151,3.053983,95422.0,95421.0,0.06553977]
[1735460407327,2.19003383,95422.0,95421.0,0.06253977]
[1735460408173,2.19003383,95422.0,95421.0,0.06353977]
[1735460408882,2.40176383,95422.0,95421.0,0.06353977]
[1735460409051,2.41719083,95422.0,95421.0,0.06753977]
[1735460409390,2.12616883,95422.0,95421.0,0.06753977]
[1735460409784,2.10364683,95422.0,95421.0,0.06753977]
[1735460410842,2.10373213,95422.0,95421.0,0.06753977]
[1735460411317,1.89928213,95422.0,95421.0,0.06753977]
[1735460411521,1.88081013,95422.0,95421.0,0.06753977]
[1735460412592,1.72629713,95422.0,95421.0,0.06753977]
[1735460413535,1.7098513,95422.0,95421.0,0.06753977]
[1735460413983,1.6953233,95422.0,95421.0,0.06753977]
[1735460415927,1.6953233,95422.0,95421.0,0.06408724]
[1735460416811,1.71176948,95422.0,95421.0,0.06408724]
[1735460417038,1.71176948,95422.0,95421.0,0.00154747]
[1735460417328,1.75713664,95422.0,95421.0,0.00154747]
[1735460418376,0.0755,95421.0,95420.0,0.06253977]
[1735460418526,3.321771,95421.0,95420.0,0.06253977]
[1735460420094,3.246271,95421.0,95420.0,0.06253977]
[1735460420724,3.321771,95421.0,95420.0,0.06253977]
[1735460421492,3.246271,95421.0,95420.0,0.06253977]
[1735460421699,0.0155,95420.0,95400.0,0.06253977]
[1735460421903,0.0155,95418.0,95373.0,0.10398632]
[1735460422148,0.0755,95414.0,95396.0,0.05828165]
[1735460422447,0.0755,95404.0,95395.0,0.05828165]
[1735460422763,0.0755,95402.0,95396.0,0.0001708]
[1735460423077,0.0755,95400.0,95396.0,0.0001708]
[1735460423294,5.093045,95399.0,95396.0,0.0001708]
[1735460423477,0.0155,95397.0,95396.0,0.0001708]
[1735460423615,5.184045,95397.0,95396.0,0.0001708]
[1735460423825,5.1844641,95397.0,95396.0,0.0001708]
[1735460424446,5.18497316,95397.0,95396.0,0.0001708]
[1735460425719,5.18980861,95397.0,95396.0,0.0001708]
[1735460425915,5.18980861,95397.0,95396.0,0.06045245]
[1735460426093,5.18980861,95397.0,95396.0,0.05845245]
[1735460426318,5.20626001,95397.0,95396.0,0.05845245]
[1735460426649,5.20626001,95397.0,95396.0,0.0021708]
[1735460426780,5.20626001,95397.0,95396.0,0.0001708]
[1735460426978,5.20626001,95397.0,95396.0,0.05845245]
[1735460427178,5.20626001,95397.0,95396.0,0.06045245]
[1735460427620,3.61265956,95397.0,95396.0,0.06045245]
[1735460427802,3.59141156,95397.0,95396.0,0.06045245]
[1735460428203,3.59141156,95397.0,95396.0,0.0021708]
[1735460428426,3.59141156,95397.0,95396.0,0.0001708]
[1735460428631,3.59141156,95397.0,95396.0,0.0011708]
[1735460429163,3.35535901,95397.0,95396.0,0.0011708]
[1735460429517,3.35535901,95397.0,95396.0,0.05945245]
[1735460430416,3.54410731,95397.0,95396.0,0.05945245]
[1735460430855,3.42772631,95397.0,95396.0,0.05945245]
[1735460431326,3.23897801,95397.0,95396.0,0.05945245]
[1735460432958,3.42772631,95397.0,95396.0,0.05945245]
[1735460433196,3.41127491,95397.0,95396.0,0.05945245]
[1735460433858,3.22252661,95397.0,95396.0,0.05945245]
[1735460436487,3.2389773,95397.0,95396.0,0.05945245]
[1735460436821,0.1132143,95397.0,95396.0,0.05945245]
[1735460437173,4.0484883,95397.0,95396.0,0.05945245]
[1735460437582,4.0329883,95397.0,95396.0,0.05945245]
[1735460437818,4.0192553,95397.0,95396.0,0.05945245]
[1735460439516,4.0192553,95397.0,95396.0,0.0011708]
[1735460439746,4.04941104,95397.0,95396.0,0.0011708]
[1735460442507,4.04941104,95397.0,95396.0,0.05945245]
[1735460442807,3.0334983,95397.0,95396.0,0.05945245]
[1735460442990,2.9585273,95397.0,95396.0,0.05945245]
[1735460443292,2.94207661,95397.0,95396.0,0.05945245]
[1735460445306,2.94207661,95397.0,95396.0,0.0011708]
[1735460445307,2.94216201,95397.0,95396.0,0.0011708]
[1735460446166,2.95861251,95397.0,95396.0,0.0011708]
[1735460446368,2.95861251,95397.0,95396.0,0.05945245]
[1735460446588,2.98876825,95397.0,95396.0,0.0011708]
[1735460449527,2.98876825,95397.0,95396.0,0.05945245]
[1735460449734,2.98876825,95397.0,95396.0,0.0011708]
[1735460450704,2.98876825,95397.0,95396.0,0.05945245]
[1735460450875,2.98876825,95397.0,95396.0,0.0011708]
[1735460451486,2.98876825,95397.0,95396.0,0.05845245]
[1735460451700,2.99076825,95397.0,95396.0,0.05845245]
[1735460452345,2.99076825,95397.0,95396.0,0.05945245]
[1735460452751,2.99076825,95397.0,95396.0,0.0011708]
[1735460454550,2.90379325,95397.0,95396.0,0.0011708]
[1735460454778,2.61630025,95397.0,95396.0,0.0011708]
[1735460454988,2.80504855,95397.0,95396.0,0.05945245]
[1735460455406,2.47063655,95397.0,95396.0,0.05945245]
[1735460455579,2.44335905,95397.0,95396.0,0.05945245]
[1735460455814,2.30005105,95397.0,95396.0,0.05945245]
[1735460456606,2.30005105,95397.0,95396.0,0.0011708]
[1735460456607,2.31650122,95397.0,95396.0,0.0011708]
[1735460457163,2.31650122,95397.0,95396.0,0.05945245]
[1735460457369,2.31650122,95397.0,95396.0,0.0011708]
[1735460458511,2.12775292,95397.0,95396.0,0.0011708]
[1735460459271,2.36380547,95397.0,95396.0,0.0011708]
[1735460459426,0.29050747,95397.0,95396.0,0.0011708]
[1735460460267,3.24080792,95398.0,95396.0,0.0011708]
[1735460460463,2.54278349,95397.0,95396.0,0.00125215]
[1735460460668,2.413434,95397.0,95396.0,0.00125215]
[1735460461987,2.413434,95397.0,95396.0,0.00025215]
[1735460462201,2.413434,95397.0,95396.0,0.00125215]
[1735460462908,2.413434,95397.0,95396.0,0.00325215]
[1735460463102,2.64948415,95397.0,95396.0,0.00325215]
[1735460464032,2.413434,95397.0,95396.0,0.00325215]
[1735460469891,2.413434,95397.0,95396.0,0.00025215]
[1735460470089,0.01653652,95398.0,95396.0,0.00025215]
[1735460470295,2.524182,95397.0,95396.0,0.00025215]
[1735460470544,2.4982,95397.0,95396.0,0.00025215]
[1735460471305,2.5012,95397.0,95396.0,0.00025215]
[1735460471817,2.5042,95397.0,95396.0,0.00025215]
[1735460472010,2.455312,95397.0,95396.0,0.00025215]
[1735460473657,2.47176289,95397.0,95396.0,0.00025215]
[1735460474068,2.455312,95397.0,95396.0,0.00025215]
[1735460475291,2.441566,95397.0,95396.0,0.00025215]
[1735460475580,2.18707993,95397.0,95396.0,0.00025215]
[1735460475910,2.113704,95397.0,95396.0,0.00025215]
[1735460476973,2.13015483,95397.0,95396.0,0.00025215]
[1735460480767,2.1591798,95397.0,95396.0,0.00025215]
[1735460480968,2.18690796,95397.0,95396.0,0.00025215]
[1735460481168,2.21366343,95397.0,95396.0,0.00025215]
[1735460483303,2.1972126,95397.0,95396.0,0.00025215]
[1735460484106,2.14054487,95397.0,95396.0,0.00025215]
[1735460486263,2.15699707,95397.0,95396.0,0.00025215]
[1735460489945,1.89453825,95397.0,95396.0,0.00025215]
[1735460490975,1.89853825,95397.0,95396.0,0.00025215]
[1735460491177,0.04729307,95397.0,95396.0,0.00025215]
[1735460491595,2.89720707,95397.0,95396.0,0.00125215]
[1735460492114,2.80460507,95397.0,95396.0,0.00025215]
[1735460492316,2.80860507,95397.0,95396.0,0.00025215]
[1735460493413,2.79215287,95397.0,95396.0,0.00025215]
[1735460494527,2.79215287,95397.0,95380.0,0.03035215]
[1735460494756,2.800973,95396.0,95380.0,0.03086121]
[1735460495251,2.734956,95396.0,95380.0,0.03086121]
[1735460495459,0.23627161,95381.0,95380.0,0.03086121]
[1735460495607,3.02802161,95381.0,95380.0,0.03086121]
[1735460496023,3.00896861,95381.0,95380.0,0.03086121]
[1735460496226,2.78914961,95381.0,95380.0,0.03086121]
[1735460497322,3.02542122,95381.0,95380.0,0.03386121]
[1735460497518,3.02542122,95381.0,95380.0,0.03173121]
[1735460501181,3.02542122,95381.0,95380.0,0.02873121]
[1735460501417,2.78914961,95381.0,95380.0,0.02973121]
[1735460503345,2.772697,95381.0,95380.0,0.02973121]
[1735460503476,3.914228,95387.0,95380.0,0.02973121]
[1735460503882,3.911075,95389.0,95380.0,0.02973121]
[1735460504081,3.911075,95389.0,95380.0,0.02990201]
[1735460504496,4.113531,95389.0,95380.0,0.02990201]
[1735460504698,3.84792,95389.0,95380.0,0.02890201]
[1735460504902,3.918472,95389.0,95380.0,0.02890201]
[1735460505127,0.002,95389.0,95380.0,0.02890201]
[1735460505331,3.936518,95388.0,95380.0,0.02890201]
[1735460505765,3.725964,95387.0,95380.0,0.02890201]
[1735460506306,0.01645255,95386.0,95380.0,0.02890201]
[1735460506487,3.827003,95385.0,95380.0,0.02890201]
[1735460506670,3.682984,95384.0,95380.0,0.02890201]
[1735460506830,3.896255,95385.0,95380.0,0.02890201]
[1735460507036,3.906767,95385.0,95380.0,0.02890201]
[1735460507237,3.896258,95385.0,95380.0,0.02890201]
[1735460507597,3.893105,95385.0,95380.0,0.02890201]
[1735460507717,3.790192,95384.0,95380.0,0.02890201]
[1735460507916,3.995554,95385.0,95380.0,0.02890201]
[1735460508377,3.786096,95384.0,95380.0,0.02890201]
[1735460508595,3.783749,95385.0,95380.0,0.02890201]
[1735460508769,2.23484,95385.0,95380.0,0.02890201]
[1735460514915,2.51836594,95385.0,95380.0,0.02890201]
[1735460515158,2.900558,95384.0,95380.0,0.02890201]
[1735460516114,3.177102,95385.0,95380.0,0.02890201]
[1735460516310,3.151158,95385.0,95380.0,0.02890201]
[1735460516506,0.01745238,95384.0,95380.0,0.02890201]
[1735460516719,3.151502,95383.0,95380.0,0.02890201]
[1735460517912,2.978827,95383.0,95380.0,0.02890201]
[1735460518225,2.388304,95382.0,95381.0,0.18758165]
[1735460518522,1.623932,95382.0,95381.0,0.18758165]
[1735460518848,1.441139,95382.0,95381.0,0.18758165]